bitfinex/quotes_BTCUSD_20230120
["timestamp","ask_amount","ask_price","bid_price","bid_amount"]
[1674190658159,3.0070048,20994.0,20993.0,0.00015672]
[1674190658679,2.7070048,20994.0,20993.0,0.00015672]
[1674190659212,3.0070048,20994.0,20993.0,0.00015672]
[1674190659521,2.7070048,20994.0,20993.0,2e-08]
[1674190660076,2.31432969,20994.0,20993.0,2e-08]
[1674190662133,1.537128,20994.0,20993.0,0.19432099]
[1674190662404,1.537128,20994.0,20993.0,2e-08]
[1674190663787,1.837128,20994.0,20993.0,2e-08]
[1674190664869,2.11611659,20994.0,20993.0,2e-08]
[1674190665133,1.837128,20994.0,20993.0,0.03600002]
[1674190665390,1.837128,20994.0,20993.0,0.03580141]
[1674190666502,1.837128,20994.0,20993.0,0.03560283]
[1674190666503,1.585628,20994.0,20993.0,0.03560283]
[1674190666759,1.98895695,20994.0,20993.0,0.03560283]
[1674190667272,1.68045695,20994.0,20993.0,0.2299238]
[1674190667760,1.20413095,20994.0,20993.0,0.03540425]
[1674190667764,0.72780495,20994.0,20993.0,0.03540425]
[1674190668297,0.40332895,20994.0,20993.0,0.03540425]
[1674190668555,0.72085195,20994.0,20993.0,0.03520567]
[1674190669074,1.08054871,20994.0,20993.0,0.03520567]
[1674190669343,1.570175,20994.0,20993.0,0.03520567]
[1674190669605,2.00573429,20994.0,20993.0,0.03500709]
[1674190669866,1.95182777,20994.0,20993.0,0.03500709]
[1674190670171,1.65182777,20994.0,20993.0,0.03500709]
[1674190670435,1.65182777,20994.0,20993.0,0.03480851]
[1674190670965,1.65193867,20994.0,20993.0,0.03480851]
[1674190671535,1.65193867,20994.0,20993.0,0.03461526]
[1674190671803,1.95193867,20994.0,20993.0,0.03461526]
[1674190672588,1.82075227,20994.0,20993.0,0.03461526]
[1674190673144,1.98235227,20994.0,20993.0,0.03461526]
[1674190673432,1.98235227,20994.0,20986.0,0.57774519]
[1674190673433,0.03382391,20992.0,20986.0,1.02194519]
[1674190673695,1.12430997,20991.0,20986.0,1.02194519]
[1674190673963,0.79246197,20990.0,20986.0,0.92194519]
[1674190674466,0.48954097,20989.0,20986.0,0.46663117]
[1674190674470,0.318043,20989.0,20986.0,0.88212576]
[1674190674732,0.17160887,20989.0,20986.0,0.46663117]
[1674190674991,0.46367787,20988.0,20986.0,0.46663117]
[1674190675574,1.41661187,20988.0,20986.0,0.02243117]
[1674190675840,0.337223,20987.0,20986.0,0.02243117]
[1674190676104,0.813708,20987.0,20986.0,0.02243117]
[1674190677043,1.290193,20987.0,20986.0,0.02243117]
[1674190677483,1.75461845,20987.0,20986.0,0.02243117]
[1674190677713,1.63861156,20987.0,20986.0,0.02243117]
[1674190678818,1.290193,20987.0,20986.0,0.02243117]
[1674190679055,1.590193,20987.0,20986.0,0.02243117]
[1674190679920,2.03968374,20987.0,20986.0,0.02243117]
[1674190680186,1.73968374,20987.0,20986.0,0.02243117]
[1674190680763,2.03968374,20987.0,20986.0,0.02243117]
[1674190680971,1.73968374,20987.0,20986.0,0.02243117]
[1674190681232,1.26319874,20987.0,20986.0,0.02243117]
[1674190681498,1.26319874,20987.0,20986.0,0.02223253]
[1674190682494,1.81181636,20987.0,20986.0,0.02223253]
[1674190683029,2.46051602,20987.0,20986.0,0.02223253]
[1674190683343,2.85120305,20987.0,20986.0,0.02223253]
[1674190684633,2.62957969,20987.0,20986.0,0.02223253]
[1674190685693,2.075178,20987.0,20986.0,0.02223253]
[1674190686250,1.775178,20987.0,20986.0,0.02223253]
[1674190687459,1.775178,20987.0,20986.0,0.02203389]
[1674190687724,2.075178,20987.0,20986.0,0.02203389]
[1674190688002,1.4103846,20987.0,20986.0,0.02203389]
[1674190688265,1.7338636,20987.0,20986.0,0.02203389]
[1674190688553,0.95297,20987.0,20986.0,0.02203389]
[1674190688823,1.68006508,20987.0,20986.0,0.02203389]
[1674190689335,1.285124,20987.0,20986.0,0.02203389]
[1674190689600,1.585124,20987.0,20986.0,0.02203389]
[1674190691509,1.85818626,20987.0,20986.0,0.02203389]
[1674190693578,1.593624,20987.0,20986.0,0.02183525]
[1674190693850,2.46548468,20987.0,20985.0,0.00741131]
[1674190694111,1.62861156,20986.0,20985.0,0.00741131]
[1674190694375,1.83622587,20986.0,20985.0,0.00741131]
[1674190694644,1.40372687,20986.0,20985.0,0.00741131]
[1674190694917,1.73396587,20986.0,20985.0,0.00741131]
[1674190695192,0.33963664,20986.0,20985.0,0.00741131]
[1674190695709,0.476504,20987.0,20985.0,0.00741131]
[1674190695969,0.66835027,20986.0,20985.0,0.00741131]
[1674190696535,0.34849127,20986.0,20985.0,0.00741131]
[1674190696748,0.476484,20988.0,20985.0,0.75379849]
[1674190697011,0.34784107,20988.0,20986.0,0.311958]
[1674190697273,0.34784107,20988.0,20985.0,0.00741131]
[1674190697528,0.37757391,20986.0,20985.0,0.00741131]
[1674190698584,0.476463,20988.0,20985.0,0.00741131]
[1674190698847,0.90482298,20988.0,20986.0,0.328162]
[1674190699156,0.90482298,20988.0,20985.0,0.34822818]
[1674190699917,0.0001109,20987.0,20985.0,0.34822818]
[1674190700180,0.90482298,20988.0,20985.0,0.34822818]
[1674190700960,0.0001109,20987.0,20985.0,0.34822818]
[1674190701227,0.0001109,20987.0,20985.0,0.00741131]
[1674190701228,0.17160887,20987.0,20985.0,0.00741131]
[1674190701494,0.37367521,20986.0,20985.0,0.00741131]
[1674190701771,1.64436421,20986.0,20985.0,0.00741131]
[1674190702026,1.92125862,20986.0,20985.0,0.00741131]
[1674190702292,2.22125862,20986.0,20985.0,0.00741131]
[1674190702553,1.16785621,20986.0,20985.0,0.00741131]
[1674190702821,0.476508,20986.0,20985.0,0.00741131]
[1674190703338,0.85529368,20987.0,20985.0,0.00741131]
[1674190703600,0.476462,20988.0,20986.0,0.42338622]
[1674190703859,0.90178406,20989.0,20986.0,0.42338622]
[1674190704127,0.0001109,20988.0,20986.0,0.42338622]
[1674190704403,0.39205614,20988.0,20985.0,0.48393331]
[1674190704639,0.45510568,20987.0,20985.0,0.48393331]
[1674190704901,0.45510568,20987.0,20985.0,0.93075348]
[1674190705415,0.64795197,20989.0,20985.0,0.93075348]
[1674190705686,0.8973048,20989.0,20985.0,1.12507445]
[1674190706455,0.8973048,20989.0,20985.0,0.93075348]
[1674190706456,0.43263237,20987.0,20985.0,0.93075348]
[1674190707053,0.90628765,20989.0,20985.0,0.93075348]
[1674190707198,0.43837774,20988.0,20985.0,1.12507445]
[1674190707450,0.43837774,20988.0,20985.0,0.93075348]
[1674190707965,0.43837774,20988.0,20986.0,0.4379157]
[1674190709258,0.43837774,20988.0,20985.0,0.96043731]
[1674190709540,0.43848864,20988.0,20985.0,0.96043731]
[1674190710062,0.17149797,20987.0,20985.0,0.00741131]
[1674190710323,0.321528,20986.0,20985.0,0.00741131]
[1674190710849,1.40411474,20988.0,20985.0,0.00741131]
[1674190711103,0.0001109,20987.0,20985.0,0.00741131]
[1674190711363,1.40411474,20988.0,20985.0,0.00741131]
[1674190711364,0.312414,20986.0,20985.0,0.39479108]
[1674190711616,0.312414,20986.0,20985.0,0.00741131]
[1674190711873,0.73705878,20986.0,20985.0,0.00741131]
[1674190712126,0.40306968,20986.0,20985.0,0.00741131]
[1674190712643,0.40295878,20986.0,20985.0,0.00741131]
[1674190713136,0.40306968,20986.0,20985.0,0.00741131]
[1674190713392,0.73415368,20986.0,20985.0,0.00741131]
[1674190713663,0.3311949,20986.0,20985.0,0.00741131]
[1674190713922,0.0001109,20986.0,20985.0,0.00741131]
[1674190714178,0.76938668,20986.0,20985.0,0.00741131]
[1674190714733,0.45083378,20986.0,20985.0,0.00741131]
[1674190714955,0.952991,20987.0,20985.0,0.11376131]
[1674190715214,0.4765,20987.0,20985.0,0.11376131]
[1674190715517,0.81250738,20990.0,20987.0,8.555e-05]
[1674190715789,0.40840743,20989.0,20988.0,0.51652497]
[1674190716085,0.40840743,20989.0,20987.0,8.555e-05]
[1674190716886,0.40840743,20989.0,20987.0,0.33543218]
[1674190717967,0.43146332,20990.0,20988.0,0.74421632]
[1674190718240,0.43146332,20990.0,20989.0,0.399537]
[1674190718982,0.43146332,20990.0,20989.0,0.0772]
[1674190719502,0.476385,20992.0,20989.0,0.0772]
[1674190719765,0.88378166,20992.0,20989.0,0.71751333]
[1674190720060,0.43193665,20993.0,20989.0,1.67038933]
[1674190720285,0.429412,20993.0,20990.0,0.32213]
[1674190720542,0.44114003,20994.0,20991.0,0.797281]
[1674190720797,0.44114003,20994.0,20991.0,0.67071497]
[1674190721372,0.44114003,20994.0,20991.0,0.476394]
[1674190721625,0.44114003,20994.0,20991.0,0.67071497]
[1674190721892,0.44114003,20994.0,20991.0,0.476394]
[1674190722204,0.43725144,20995.0,20991.0,1.22350897]
[1674190722470,0.43725144,20995.0,20992.0,0.64375935]
[1674190722985,0.00226259,20995.0,20994.0,0.0772]
[1674190723274,0.00226259,20995.0,20994.0,1.166849]
[1674190723583,0.00226259,20995.0,20994.0,1.244049]
[1674190723915,0.00226259,20995.0,20994.0,1.344049]
[1674190724431,0.00226259,20995.0,20994.0,1.044049]
[1674190724685,0.00226259,20995.0,20994.0,1.42320822]
[1674190725211,0.00226259,20995.0,20994.0,1.044049]
[1674190725493,0.00226259,20995.0,20994.0,1.34385048]
[1674190726040,0.00226259,20995.0,20994.0,1.80911621]
[1674190726296,0.00226259,20995.0,20994.0,1.34385048]
[1674190726769,0.00226259,20995.0,20994.0,1.4944491]
[1674190727034,0.00226259,20995.0,20994.0,1.34375777]
[1674190727562,0.00226259,20995.0,20994.0,1.33715777]
[1674190727822,0.00226259,20995.0,20994.0,1.63602845]
[1674190728097,0.00226259,20995.0,20994.0,1.93602845]
[1674190728359,0.00226259,20995.0,20994.0,2.27062845]
[1674190728888,0.00226259,20995.0,20994.0,1.96673545]
[1674190729196,0.00226259,20995.0,20994.0,1.76407324]
[1674190729481,0.00226259,20995.0,20994.0,1.42947324]
[1674190730009,0.00226259,20995.0,20994.0,1.33185565]
[1674190730268,0.00226259,20995.0,20994.0,1.63185565]
[1674190730741,0.00226259,20995.0,20994.0,1.92525565]
[1674190731263,0.00226259,20995.0,20994.0,1.92595565]
[1674190731517,0.00226259,20995.0,20994.0,1.92655565]
[1674190732047,0.00226259,20995.0,20994.0,2.359076]
[1674190732310,0.00226259,20995.0,20994.0,1.72938512]
[1674190732580,0.00226259,20995.0,20994.0,1.62698316]
[1674190733706,0.00226259,20995.0,20994.0,1.92698316]
[1674190734224,0.00226259,20995.0,20994.0,2.40330916]
[1674190735364,0.00226259,20995.0,20994.0,2.77930749]
[1674190735625,0.00226259,20995.0,20994.0,2.40330916]
[1674190735877,0.00226259,20995.0,20994.0,2.13677921]
[1674190736144,0.00226259,20995.0,20994.0,1.80419077]
[1674190736392,0.00226259,20995.0,20994.0,2.10868428]
[1674190736665,0.00226259,20995.0,20994.0,1.97149519]
[1674190736926,0.00226259,20995.0,20994.0,1.89428938]
[1674190737733,0.00226259,20995.0,20994.0,1.79428938]
[1674190737994,0.00226259,20995.0,20994.0,1.030452]
[1674190738261,0.00226259,20995.0,20994.0,0.476326]
[1674190738262,0.40202037,20995.0,20994.0,0.476326]
[1674190738732,0.40190947,20995.0,20993.0,0.476349]
[1674190738758,0.00226259,20995.0,20993.0,0.476349]
[1674190739001,0.0001109,20994.0,20992.0,0.476356]
[1674190739523,0.49080356,20995.0,20992.0,0.93956608]
[1674190739524,0.44495495,20995.0,20992.0,0.93956608]
[1674190739842,0.44495495,20995.0,20992.0,1.03956608]
[1674190740036,0.44506585,20995.0,20992.0,0.93956608]
[1674190740300,0.44506585,20995.0,20992.0,0.476356]
[1674190740571,0.74674725,20994.0,20992.0,0.476356]
[1674190740827,0.42726825,20994.0,20992.0,0.476356]
[1674190741098,0.42726825,20994.0,20992.0,0.92932303]
[1674190741377,0.00226259,20995.0,20993.0,0.34525972]
[1674190741639,0.00226259,20995.0,20994.0,0.313145]
[1674190742460,0.40056104,20995.0,20994.0,0.313145]
[1674190742762,0.40056104,20995.0,20993.0,1.39793672]
[1674190743303,0.40056104,20995.0,20994.0,0.311786]
[1674190743581,0.40056104,20995.0,20994.0,0.476326]
[1674190743841,0.57216991,20995.0,20993.0,0.476329]
[1674190744112,0.4337266,20994.0,20992.0,0.476356]
[1674190746772,0.64906084,20994.0,20991.0,0.476392]
[1674190747038,0.64906084,20994.0,20990.0,0.92183764]
[1674190747039,0.39053,20993.0,20990.0,0.92183764]
[1674190747297,0.24869797,20993.0,20990.0,0.92183764]
[1674190747574,0.0772,20993.0,20990.0,0.92183764]
[1674190748413,0.0001109,20992.0,20990.0,0.476414]
[1674190748670,0.4189361,20991.0,20989.0,0.476429]
[1674190748941,0.4189361,20991.0,20989.0,0.84834252]
[1674190748942,0.324007,20990.0,20989.0,0.84834252]
[1674190749207,0.4189361,20991.0,20989.0,0.37191352]
[1674190750855,0.41886597,20991.0,20989.0,0.37191352]
[1674190751117,0.0001109,20992.0,20989.0,0.37191352]
[1674190751390,0.37387023,20992.0,20989.0,0.37201935]
[1674190751929,0.37387023,20992.0,20989.0,0.37191352]
[1674190752191,0.40279499,20991.0,20989.0,0.37191352]
[1674190752453,0.40279499,20991.0,20988.0,0.476454]
[1674190752454,0.323451,20990.0,20987.0,0.34716259]
[1674190752709,0.57429296,20991.0,20988.0,0.46688983]
[1674190753017,0.40279499,20991.0,20988.0,0.46688983]
[1674190753831,0.476362,20993.0,20988.0,0.19432097]
[1674190754093,0.87989587,20993.0,20989.0,0.6288428]
[1674190754404,0.39339412,20994.0,20989.0,1.1052708]
[1674190754679,0.39339412,20994.0,20990.0,0.51161997]
[1674190754985,0.39339412,20994.0,20990.0,0.67073197]
[1674190755249,0.00226259,20995.0,20991.0,0.19432097]
[1674190755544,0.00226259,20995.0,20993.0,0.0764]
[1674190755792,0.00226259,20995.0,20993.0,0.27072097]
[1674190756045,0.00226259,20995.0,20994.0,0.311958]
[1674190756578,0.00226259,20995.0,20994.0,0.788284]
[1674190756868,0.00226259,20995.0,20994.0,1.71765777]
[1674190757129,0.00226259,20995.0,20994.0,2.01765777]
[1674190758445,0.00226259,20995.0,20994.0,2.45885777]
[1674190759243,0.00226259,20995.0,20994.0,1.86021]
[1674190760034,0.00226259,20995.0,20994.0,2.29702823]
[1674190760560,0.00226259,20995.0,20994.0,1.86021]
[1674190760875,0.00226259,20995.0,20994.0,1.70581]
[1674190762691,0.00226259,20995.0,20994.0,1.78301]
[1674190762960,0.00226259,20995.0,20994.0,2.46018229]
[1674190763230,0.00226259,20995.0,20994.0,2.46021]
[1674190764567,0.00226259,20995.0,20994.0,2.13572499]
[1674190764835,0.00237349,20995.0,20994.0,1.69452499]
[1674190765097,0.00226259,20995.0,20994.0,1.69452499]
[1674190766487,0.00226259,20995.0,20994.0,1.26461]
[1674190766744,0.00226259,20995.0,20994.0,1.41821]
[1674190767002,0.00226259,20995.0,20994.0,1.83638875]
[1674190768067,0.00226259,20995.0,20994.0,1.71821]
[1674190768586,0.00226259,20995.0,20994.0,2.01821]
[1674190769371,0.00226259,20995.0,20994.0,1.876349]
[1674190769898,0.00226259,20995.0,20994.0,1.26461]
[1674190770174,0.00226259,20995.0,20994.0,1.66461]
[1674190771536,0.00226259,20995.0,20994.0,2.11851]
[1674190772906,0.00219659,20995.0,20994.0,2.11851]
[1674190773427,0.00219659,20995.0,20994.0,2.594836]
[1674190774257,0.00219659,20995.0,20994.0,2.65495754]
[1674190774535,0.00219659,20995.0,20994.0,2.38475502]
[1674190774795,0.00219659,20995.0,20994.0,1.994836]
[1674190775065,0.00219659,20995.0,20994.0,2.294836]
[1674190775332,0.00219659,20995.0,20994.0,2.594836]
[1674190776160,0.00219659,20995.0,20994.0,2.7039418]
[1674190776419,0.00219659,20995.0,20994.0,2.4039418]
[1674190776675,0.00219659,20995.0,20994.0,2.7039418]
[1674190777159,0.00219659,20995.0,20994.0,2.36543913]
[1674190777165,0.00219659,20995.0,20994.0,1.994836]
[1674190777414,0.00219659,20995.0,20994.0,2.294836]
[1674190777683,0.00219659,20995.0,20994.0,2.64087169]
[1674190778382,0.00219659,20995.0,20994.0,2.294836]
[1674190778807,0.00219659,20995.0,20994.0,2.594836]
[1674190779231,0.00219659,20995.0,20994.0,2.63770073]
[1674190779448,0.00219659,20995.0,20994.0,2.33770073]
[1674190779718,0.00219659,20995.0,20994.0,1.994836]
[1674190779938,0.00219659,20995.0,20994.0,2.294836]
[1674190780830,0.00219659,20995.0,20994.0,2.140936]
[1674190781723,0.00219659,20995.0,20994.0,2.25657569]
[1674190783265,0.00230749,20995.0,20994.0,2.15657569]
[1674190783475,0.00219659,20995.0,20994.0,2.15657569]
[1674190785960,0.00219659,20995.0,20994.0,2.45657569]
[1674190786466,0.00219659,20995.0,20994.0,2.15657569]
[1674190787138,0.00219659,20995.0,20994.0,2.19257569]
[1674190787372,0.00230749,20995.0,20994.0,2.19257569]
[1674190787617,0.00219659,20995.0,20994.0,2.19257569]
[1674190788271,0.00219659,20995.0,20994.0,1.88061769]
[1674190788488,0.35100396,20995.0,20994.0,0.036]
[1674190790293,0.35089306,20995.0,20994.0,0.036]
[1674190792103,0.00219659,20995.0,20994.0,0.988652]
[1674190792469,0.00219659,20995.0,20994.0,1.71210824]
[1674190793124,0.00219659,20995.0,20994.0,1.39488624]
[1674190793571,0.00230749,20995.0,20994.0,1.39488624]
[1674190793797,0.00219659,20995.0,20994.0,0.988652]
[1674190794583,0.00219659,20995.0,20994.0,1.72190756]
[1674190795148,0.00230749,20995.0,20994.0,0.988652]
[1674190795935,0.34209619,20995.0,20994.0,0.988652]
[1674190796213,0.34209619,20995.0,20994.0,0.036]
[1674190797880,0.34198529,20995.0,20994.0,0.036]
[1674190798950,0.00219659,20995.0,20994.0,0.988652]
[1674190800773,0.38602502,20995.0,20994.0,0.036]
[1674190801024,0.69887902,20995.0,20994.0,0.036]
[1674190801308,0.38296834,20995.0,20994.0,0.036]
[1674190801546,0.69978934,20995.0,20994.0,0.036]
[1674190801843,0.38296834,20995.0,20994.0,0.036]
[1674190802091,0.70639844,20995.0,20994.0,0.036]
[1674190802349,0.17160887,20995.0,20994.0,0.036]
[1674190802637,0.9697879,20995.0,20994.0,0.036]
[1674190802890,1.2697879,20995.0,20994.0,0.036]
[1674190803409,1.60813141,20995.0,20994.0,0.036]
[1674190803659,1.70651388,20995.0,20994.0,0.036]
[1674190803927,1.70640298,20995.0,20994.0,0.036]
[1674190804705,1.70651388,20995.0,20994.0,0.036]
[1674190807047,1.74507037,20995.0,20994.0,0.036]
[1674190809492,2.15116227,20995.0,20994.0,0.036]
[1674190810565,1.85116227,20995.0,20994.0,0.036]
[1674190810827,1.67666137,20995.0,20994.0,0.036]
[1674190811351,1.67677227,20995.0,20994.0,0.036]
[1674190812447,1.97677227,20995.0,20994.0,0.036]
[1674190812712,1.75367227,20995.0,20994.0,0.036]
[1674190813311,1.27736927,20995.0,20994.0,0.036]
[1674190814146,1.27725837,20995.0,20994.0,0.036]
[1674190814402,1.27736927,20995.0,20994.0,0.036]
[1674190814703,0.95868527,20995.0,20994.0,0.036]
[1674190815231,1.29738927,20995.0,20994.0,0.036]
[1674190817392,1.26374997,20995.0,20994.0,0.036]
[1674190817708,1.19129737,20995.0,20994.0,0.036]
[1674190818257,1.23107339,20995.0,20994.0,0.036]
[1674190818517,1.19129737,20995.0,20994.0,0.036]
[1674190819318,1.60455241,20995.0,20994.0,0.036]
[1674190819594,1.64547791,20995.0,20994.0,0.036]
[1674190819861,1.19129737,20995.0,20994.0,0.036]
[1674190820133,1.29129737,20995.0,20994.0,0.036]
[1674190820399,1.76760037,20995.0,20994.0,0.036]
[1674190820672,1.66760037,20995.0,20994.0,0.03591983]
[1674190820951,2.00564318,20995.0,20994.0,0.03591983]
[1674190821654,2.11318334,20995.0,20994.0,0.03591983]
[1674190821878,1.66760037,20995.0,20994.0,0.03591983]
[1674190822556,1.74440037,20995.0,20994.0,0.03591983]
[1674190824467,1.8570429,20995.0,20994.0,0.03591983]
[1674190825239,2.21166878,20995.0,20994.0,0.03591983]
[1674190825501,1.8570429,20995.0,20994.0,0.03091983]
[1674190826290,1.7801429,20995.0,20994.0,0.03091983]
[1674190826561,1.94928247,20995.0,20994.0,0.03091983]
[1674190827131,1.7801429,20995.0,20994.0,0.03091983]
[1674190827389,0.80598229,20994.0,20990.0,0.1]
[1674190827649,1.575794,20993.0,20989.0,0.52391614]
[1674190827904,0.328768,20992.0,20989.0,0.52391614]
[1674190828191,0.64787297,20992.0,20989.0,0.52391614]
[1674190828441,0.476375,20992.0,20989.0,0.52391614]
[1674190829235,0.476353,20993.0,20990.0,0.36379292]
[1674190829681,0.92029171,20993.0,20991.0,0.10010582]
[1674190830204,1.42175917,20994.0,20991.0,0.10010582]
[1674190830205,0.94542617,20994.0,20991.0,0.29442679]
[1674190830466,0.82361163,20994.0,20991.0,0.29442679]
[1674190830752,1.29995763,20994.0,20991.0,0.10010582]
[1674190831312,0.94542617,20994.0,20991.0,0.10010582]
[1674190831567,0.0001109,20993.0,20991.0,0.50037107]
[1674190831831,0.39905633,20993.0,20991.0,0.1]
[1674190832402,0.39916723,20993.0,20991.0,0.55309595]
[1674190833188,0.39905633,20993.0,20991.0,0.55309595]
[1674190833777,0.0001109,20993.0,20991.0,0.55309595]
[1674190834034,1.30190757,20994.0,20991.0,0.55309595]
[1674190834299,0.38343335,20993.0,20991.0,0.55309595]
[1674190835134,0.46908017,20994.0,20992.0,0.71279692]
[1674190835394,0.46908017,20994.0,20993.0,0.1]
[1674190835654,0.46908017,20994.0,20993.0,0.89359]
[1674190835922,0.46919107,20994.0,20993.0,0.89359]
[1674190836236,0.86650702,20994.0,20993.0,0.576349]
[1674190837290,0.46908017,20994.0,20993.0,0.576349]
[1674190838351,0.46908017,20994.0,20993.0,0.612349]
[1674190838914,0.46908017,20994.0,20993.0,1.06485528]
[1674190839146,0.46908017,20994.0,20993.0,1.85844428]
[1674190842076,0.46908017,20994.0,20993.0,1.54120428]
[1674190842336,0.46908017,20994.0,20993.0,1.85844428]
[1674190849786,0.46908017,20994.0,20993.0,2.07122529]
[1674190850055,0.46908017,20994.0,20993.0,3.45178]
[1674190850314,0.46908017,20994.0,20993.0,3.72597844]
[1674190850596,0.46908017,20994.0,20993.0,3.32763395]
[1674190850831,0.46897029,20994.0,20993.0,3.32763395]
[1674190851085,0.46897029,20994.0,20993.0,3.11747393]
[1674190851356,0.46897029,20994.0,20993.0,1.86335093]
[1674190851994,0.46897029,20994.0,20993.0,2.92991818]
[1674190853520,0.46897029,20994.0,20993.0,2.81589253]
[1674190854054,0.46897029,20994.0,20993.0,1.86335093]
[1674190854282,0.46897029,20994.0,20993.0,2.81589112]
[1674190854514,0.46897029,20994.0,20993.0,1.483138]
[1674190854783,0.46897029,20994.0,20993.0,3.02044054]
[1674190855063,0.46897029,20994.0,20993.0,2.54969869]
[1674190855320,0.46897029,20994.0,20993.0,2.84969869]
[1674190855591,0.46897029,20994.0,20993.0,2.54969869]
[1674190856467,0.46897029,20994.0,20993.0,2.84969869]
[1674190857000,0.46897029,20994.0,20993.0,3.08786869]
[1674190857807,0.46397029,20994.0,20993.0,3.38706346]
[1674190860277,0.3769698,20994.0,20993.0,3.58639282]
[1674190860968,0.3769698,20994.0,20993.0,3.41565176]
[1674190862009,0.3769698,20994.0,20993.0,3.70022151]
[1674190862276,0.3769698,20994.0,20993.0,3.41565176]
[1674190862561,0.3769698,20994.0,20993.0,2.54950259]
[1674190862811,0.3769698,20994.0,20993.0,2.84289878]
[1674190863090,0.3769698,20994.0,20993.0,2.47230259]
[1674190863627,0.3769698,20994.0,20993.0,2.77230259]
[1674190864746,0.3769698,20994.0,20993.0,3.06571027]
[1674190865015,0.00226259,20996.0,20994.0,0.87546]
[1674190865287,0.00226259,20996.0,20995.0,4.23473206]
[1674190865568,0.00226259,20996.0,20995.0,4.62618553]
[1674190865823,0.00226259,20996.0,20995.0,4.66218553]
[1674190866104,0.00226259,20996.0,20995.0,4.94675528]
[1674190866599,0.00226259,20996.0,20995.0,4.71910461]
[1674190866906,0.00226259,20996.0,20995.0,4.71885421]
[1674190867471,0.00226259,20996.0,20995.0,4.79572572]
[1674190867681,0.00226259,20996.0,20995.0,4.51118446]
[1674190867682,0.00126789,20996.0,20995.0,4.51118446]
[1674190867942,0.00126789,20996.0,20995.0,5.02306673]
[1674190868216,0.00126789,20996.0,20995.0,5.32306673]
[1674190869506,0.00126789,20996.0,20995.0,5.03868871]
[1674190869784,0.00126789,20996.0,20995.0,5.209287]
[1674190870020,0.00126789,20996.0,20995.0,5.32306673]
[1674190870280,0.00126789,20996.0,20995.0,5.82156673]
[1674190870824,0.00226259,20999.0,20997.0,0.5985]
[1674190871065,0.00226259,20999.0,20998.0,3.85106809]
[1674190871415,0.00226259,20999.0,20998.0,5.01504129]
[1674190871574,0.00226259,20999.0,20998.0,5.45467294]
[1674190871843,2.59e-06,20999.0,20998.0,5.37701824]
[1674190872079,2.59e-06,20999.0,20998.0,5.60446435]
[1674190872341,2.59e-06,20999.0,20998.0,5.37701824]
[1674190872615,2.59e-06,20999.0,20998.0,6.4600763]
[1674190872841,2.59e-06,20999.0,20998.0,6.71747256]
[1674190873098,2.59e-06,20999.0,20998.0,6.4901763]
[1674190873608,2.59e-06,20999.0,20998.0,6.71736174]
[1674190874144,2.59e-06,20999.0,20998.0,5.52440643]
[1674190874410,2.59e-06,20999.0,20998.0,3.95977169]
[1674190875437,2.59e-06,20999.0,20998.0,3.48257]
[1674190875698,2.59e-06,20999.0,20998.0,2.286765]
[1674190879704,2.59e-06,20999.0,20998.0,2.586765]
[1674190879976,2.59e-06,20999.0,20998.0,2.663965]
[1674190883251,2.59e-06,20999.0,20998.0,2.363965]
[1674190883444,2.59e-06,20999.0,20998.0,1.81053]
[1674190883445,0.17150056,20999.0,20998.0,1.81053]
[1674190883718,2.59e-06,20999.0,20998.0,1.81053]
[1674190884540,2.59e-06,20999.0,20998.0,1.494805]
[1674190885321,2.59e-06,20999.0,20998.0,0.542335]
[1674190885581,0.30671959,20999.0,20998.0,0.0661]
[1674190885836,0.38391959,20999.0,20998.0,0.0661]
[1674190886099,0.86013259,20999.0,20998.0,0.0661]
[1674190887648,1.16013259,20999.0,20998.0,0.0661]
[1674190888958,1.63634559,20999.0,20998.0,0.0661]
[1674190889734,1.33634559,20999.0,20998.0,0.0661]
[1674190890789,1.63634559,20999.0,20998.0,0.0661]
[1674190891835,1.63634559,20999.0,20998.0,0.06599159]
[1674190893400,1.33634559,20999.0,20998.0,0.06599159]
[1674190893686,0.78293259,20999.0,20998.0,0.06599159]
[1674190893948,0.78293259,20999.0,20998.0,0.54222659]
[1674190893949,2.59e-06,20999.0,20998.0,0.54222659]
[1674190894517,2.59e-06,20999.0,20998.0,1.01846159]
[1674190895063,2.59e-06,20999.0,20998.0,1.33561159]
[1674190900842,0.00011349,20999.0,20998.0,1.01846159]
[1674190901106,2.59e-06,20999.0,20998.0,1.01846159]
[1674190902718,0.00011349,20999.0,20998.0,0.54222659]
[1674190903073,0.09760349,20999.0,20998.0,0.06599159]
[1674190903864,0.00011349,20999.0,20998.0,0.06599159]
[1674190904125,2.59e-06,20999.0,20998.0,0.06599159]
[1674190906604,0.40168859,20999.0,20998.0,0.06599159]
[1674190907154,1.17790159,20999.0,20998.0,0.06599159]
[1674190907377,0.87801249,20999.0,20998.0,0.06599159]
[1674190908470,0.97801249,20999.0,20998.0,0.06599159]
[1674190908735,1.86196803,20999.0,20998.0,0.06599159]
[1674190908992,1.86196803,20999.0,20991.0,0.4431]
[1674190908993,0.0610733,20997.0,20989.0,0.49856099]
[1674190909248,0.0767,20993.0,20989.0,0.49856099]
[1674190909524,0.49500597,20992.0,20989.0,0.49856099]
[1674190909771,0.553053,20993.0,20989.0,0.59856099]
[1674190909772,0.17149797,20991.0,20989.0,0.59856099]
[1674190910033,0.17149797,20991.0,20989.0,0.63456099]
[1674190910318,0.553053,20993.0,20989.0,0.53456099]
[1674190910580,0.0001109,20992.0,20989.0,0.53456099]
[1674190910876,0.0001109,20992.0,20989.0,0.05813899]
[1674190911128,0.392058,20991.0,20989.0,0.05813899]
[1674190911385,0.316217,20990.0,20989.0,0.05813899]
[1674190911661,0.0768,20991.0,20989.0,0.05813899]
[1674190911913,0.55357,20993.0,20989.0,0.05813899]
[1674190912179,0.55357,20993.0,20989.0,0.35245996]
[1674190912446,0.55357,20993.0,20989.0,0.82889996]
[1674190912707,0.47637,20993.0,20989.0,0.72889996]
[1674190912983,0.47637,20993.0,20989.0,0.53457899]
[1674190913245,0.47637,20993.0,20989.0,0.82889996]
[1674190913559,0.47637,20993.0,20990.0,0.1]
[1674190914357,0.47637,20993.0,20990.0,0.136]
[1674190914612,0.47637,20993.0,20990.0,0.03535351]
[1674190915227,0.47637,20993.0,20990.0,0.13535351]
[1674190915480,0.47637,20993.0,20990.0,0.13470711]
[1674190915728,0.0772,20991.0,20990.0,0.03470711]
[1674190915985,0.39878,20991.0,20990.0,0.03470711]
[1674190916247,0.3988909,20991.0,20990.0,0.03470711]
[1674190916742,0.8752849,20991.0,20990.0,0.03470711]
[1674190917236,0.8725649,20991.0,20990.0,0.03470711]
[1674190918494,1.04406287,20991.0,20990.0,0.03470711]
[1674190918816,1.3489589,20991.0,20990.0,0.03470711]
[1674190919999,2.0203589,20991.0,20990.0,0.03470711]